Cogmind - Beta 13 @@@ ROGUE MODE // 2024.06.04 @ 21:01:50 Player: Waste Result: Destroyed by S-43 Plague with Heavy Machine Gun Performance ------------- Evolutions (9) 4500 Regions Visited (30) 6000 Robots Destroyed (258) 1290 Value Destroyed (9776) 9776 Prototype IDs (55) 1100 Alien Tech Used (8) 1600 Bonus (11053) 11053 TOTAL SCORE: 35319 Bonus ------- High Alert Combat Kills 563 Follower Combat Kills 2327 Met Data Miner 300 Met Zhirov 300 Met Warlord at Base 500 MAIN.C Attacked Warlord 500 Warlord Defense Kills 1650 Built Enhanced Grunts 300 A7 Reached Mainframe 300 Met R17 at Cetus 500 Met R17 at Research 2000 Met Warlord at Research 2000 Friendly Fire -187 Cogmind --------- Core Integrity 0/1600 Matter 162/300 Energy 100/100 System Corruption 23% Temperature Cool (0) Movement Core (50) Location -1/Access Parts ------- > --- POWER (2) -------- (None) > --- PROPULSION (6) --- (None) > --- UTILITY (13) ----- (None) > --- WEAPON (4) ------- (None) > --- INVENTORY (5) ---- Heavy Antimatter Reactor Advanced Energy Well (500) Layered Heavy Armor Plating Peak State ------------ > --- POWER ------------ Light Particle Reactor Quantum Reactor > --- PROPULSION ------- Cooled Gravmag System Cooled Antigrav System Cooled Antigrav System Combat Antigrav System Combat Antigrav System Combat Antigrav System > --- UTILITY ---------- Large Storage Unit Enhanced Optical Array Advanced Signal Interpreter Seismic Detector Experimental Core Analyzer Nanoactuators Advanced Transmission Jammer Improved Reaction Control System Advanced Phase Shifter Makeshift Cloaking Device Advanced Hacking Suite Experimental Hacking Suite Ghost Barrier > --- WEAPON ----------- Nanosword Nanosword Sigix Broadsword > --- INVENTORY -------- Heavy Antimatter Reactor Quantum Reactor Light Quantum Reactor Vortex Chain Reactor Combat Antigrav System Combat Linear Gravjet Advanced Energy Well Weapon Mount AEGIS Remote Shield Null Cannon Hypervelocity Mass Driver Heavy Shock Bomb Launcher Nanosword [Rating: 202] Favorites ----------- Power Light Angular Momentum Engine Engine Light Angular Momentum Engine Power Core Micro Nuclear Core Reactor Light Antimatter Reactor Propulsion Combat Airjet Treads Light Treads Leg Aluminum Leg Hover Unit Combat Airjet Utility Large Storage Unit Device Advanced Sensor Array Storage Large Storage Unit Processor Improved Signal Interpreter Hackware Makeshift System Shield Protection Improved Utility Shielding Artifact Spacefold Activator Weapon Hypervelocity Gauss Rifle Energy Gun Medium Laser Energy Cannon Ion Cannon Ballistic Gun Hypervelocity Gauss Rifle Ballistic Cannon Improved Light Cannon Launcher Advanced EMP Blaster Impact Weapon Powered Hammer Slashing Weapon Great Axe Piercing Weapon Makeshift Spear Build | -11 -10 -10 -9 -8 -7 -7 -7 -7 -6 -6 -6 -6 -6 -6 -5 -5 -5 -5 -4 -4 -4 -4 -4 -3 -3 -3 -2 -2 -2 -1 ------- Run | Yrd Mat Min Mat Mat Fac Low Low Dat Pro Fac Ext Cet Arc Hub Fac Upp Upp War Pro Fac Upp Upp Zhi Pro Res Tes Res Qua Sec Acc Slots Evolved 18 | . . . 2 2 2 . . . . 2 . . . . 2 . . . . 2 . . . . 2 . 2 . . 2 Power 1 | . . . . . . . . . . . . . . . . . . . . 1 . . . . . . . . . . Propulsion 4 | . . . 1 1 . . . . . . . . . . 1 . . . . 1 . . . . . . . . . . Utility 11 | . . . 1 1 2 . . . . 2 . . . . 1 . . . . . . . . . 2 . 2 . . . Weapon 2 | . . . . . . . . . . . . . . . . . . . . . . . . . . . . . . 2 Parts Attached 455 | . 23 9 21 15 42 3 8 2 4 45 8 2 9 7 12 4 . 17 7 49 5 8 8 1 17 22 11 22 29 45 Power 32 | . 2 1 3 . 2 . 1 . . 2 . . 1 . . . . 4 . 7 . . 1 . 1 . . 1 2 4 Engine 12 | . 1 1 3 . 1 . 1 . . 1 . . 1 . . . . 2 . 1 . . . . . . . . . . Core 5 | . 1 . . . 1 . . . . 1 . . . . . . . 1 . 1 . . . . . . . . . . Reactor 15 | . . . . . . . . . . . . . . . . . . 1 . 5 . . 1 . 1 . . 1 2 4 Propulsion 67 | . 8 2 5 5 11 . . . . 4 . . 3 1 2 3 . 5 . 10 . . 2 . 1 . . . 3 2 Treads 5 | . . . . 5 . . . . . . . . . . . . . . . . . . . . . . . . . . Leg 14 | . 8 1 5 . . . . . . . . . . . . . . . . . . . . . . . . . . . Wheel . | . . . . . . . . . . . . . . . . . . . . . . . . . . . . . . . Hover 48 | . . 1 . . 11 . . . . 4 . . 3 1 2 3 . 5 . 10 . . 2 . 1 . . . 3 2 Flight . | . . . . . . . . . . . . . . . . . . . . . . . . . . . . . . . Utility 223 | . 6 . 2 4 17 1 4 1 2 26 7 1 4 5 6 . . 5 4 28 3 7 3 . 12 15 7 17 20 16 Device 154 | . 3 . 1 3 8 1 2 1 1 15 5 . 2 4 3 . . 3 3 20 2 6 2 . 8 9 6 13 17 16 Storage 13 | . 3 . . 1 1 . . . . 3 . . . . . . . . . 2 . . . . . 1 . 2 . . Processor 11 | . . . . . 2 . . . . 2 . . . . 1 . . 1 . 1 . . . . 2 2 . . . . Hackware 16 | . . . . . 4 . 1 . 1 1 1 . 1 . 1 . . . . 4 . . . . 1 1 . . . . Protection 27 | . . . 1 . 2 . 1 . . 5 1 1 1 1 1 . . 1 1 1 1 1 1 . 1 2 1 2 1 . Artifact 2 | . . . . . . . . . . . . . . . . . . . . . . . . . . . . . 2 . Weapon 133 | . 7 6 11 6 12 2 3 1 2 13 1 1 1 1 4 1 . 3 3 4 2 1 2 1 3 7 4 4 4 23 Energy Gun . | . . . . . . . . . . . . . . . . . . . . . . . . . . . . . . . Energy Cannon 37 | . . . 7 2 . . . . . 3 . . . . 2 . . . 2 1 1 . 1 1 1 4 1 1 1 9 Ballistic Gun 9 | . . . . . 1 . . . 1 3 1 1 1 1 . . . . . . . . . . . . . . . . Ballistic Cannon 20 | . 7 3 1 2 . . . . . . . . . . . . . 1 . 2 . . . . 1 2 1 . . . Launcher 25 | . . 3 3 2 6 1 1 1 1 1 . . . . . . . . . . 1 . 1 . 1 . 1 1 . 1 Special Weapon . | . . . . . . . . . . . . . . . . . . . . . . . . . . . . . . . Impact Weapon 1 | . . . . . 1 . . . . . . . . . . . . . . . . . . . . . . . . . Slashing Weapon 38 | . . . . . 4 1 2 . . 6 . . . . 2 . . 2 1 1 . 1 . . . 1 1 2 3 11 Piercing Weapon 3 | . . . . . . . . . . . . . . . . 1 . . . . . . . . . . . . . 2 Special Melee Weapon . | . . . . . . . . . . . . . . . . . . . . . . . . . . . . . . . Unidentified Prototypes 30 | . . . 2 . 3 . . . . . . 1 . 1 1 . . 3 . 3 . . 4 . . 5 . 1 4 2 Corrupted Parts 2 | . . 2 . . . . . . . . . . . . . . . . . . . . . . . . . . . . System Corruption 9 | . . 9 . . . . . . . . . . . . . . . . . . . . . . . . . . . . Parts Lost 54 | . . 4 3 3 2 . 1 . 3 7 . . . 1 2 . . 3 . . . . . . 2 2 . 1 1 19 Power 5 | . . 1 1 . . . 1 . . . . . . . . . . . . . . . . . . . . . . 2 Propulsion 11 | . . 1 1 . 1 . . . . 2 . . . . 1 . . 2 . . . . . . . . . . . 3 Utility 24 | . . . 1 1 1 . . . 1 3 . . . 1 1 . . . . . . . . . 1 2 . 1 1 10 Weapon 14 | . . 2 . 2 . . . . 2 2 . . . . . . . 1 . . . . . . 1 . . . . 4 Highest Loss Streak 10 | . . 2 2 2 1 . 1 . 3 2 . . . 1 1 . . 2 . . . . . . 1 1 . 1 1 10 To Critical Strikes . | . . . . . . . . . . . . . . . . . . . . . . . . . . . . . . . Average Slot Usage (%) 96 | . 94 98 98 93 87 100 99 100 95 99 93 93 99 99 93 93 100 98 94 99 100 100 93 100 98 99 100 99 95 92 Engine 3 | . 6 13 10 9 . . 2 7 7 2 6 6 6 6 5 5 5 4 . 1 . . . . . . . . . . Core 1 | . 6 . . . 6 7 4 . . 3 . . . . . . . . . . . . . . . . . . . . Reactor 2 | . . . . . . . . . . . . . . . . . . . 5 8 10 10 10 10 9 9 8 8 7 7 Treads 2 | . . . . 35 2 . . . . . . . . . . . . . . . . . . . . . . . . . Leg 3 | . 26 27 32 . . . . . . . . . . . . . . . . . . . . . . . . . . . Hover 21 | . . . . . 22 30 30 30 30 25 26 26 26 25 28 28 29 28 29 31 31 31 31 31 28 28 26 26 26 23 Device 13 | . 10 14 10 19 15 14 10 7 7 12 12 6 6 8 7 11 11 7 10 11 14 14 13 15 8 10 15 19 22 23 Storage 6 | . 14 14 11 9 7 7 7 7 7 6 6 6 6 6 5 5 5 5 5 5 5 5 5 5 4 4 4 4 4 3 Processor 11 | . . . . . 6 7 7 7 7 12 13 13 13 13 16 17 17 20 23 15 15 15 15 15 21 18 18 14 13 11 Hackware 9 | . . . . . 12 15 15 15 18 17 13 13 13 12 9 5 5 5 5 11 10 10 10 10 13 14 13 13 13 10 Protection 3 | . . . 10 2 . . 4 7 1 3 . 5 12 10 5 11 11 11 5 1 . . . . 2 2 4 4 2 . Energy Cannon 2 | . . . 20 10 . . . . . 1 . . . . 2 . . . 1 1 3 5 . 5 3 4 3 . . 1 Ballistic Gun 2 | . 5 . . . . . . . 3 4 8 13 13 13 4 . . . . . . . . . . . . . . . Ballistic Cannon 2 | . 16 23 . 7 . . . . . . . . . . . . . 2 . 4 1 . . . 2 3 2 . . . Slashing Weapon 3 | . . . . . 6 14 14 15 1 5 3 . . . 2 5 5 6 3 4 5 4 5 5 1 . 2 6 3 10 Naked Turns 38 | . . . . . . . . . . . . . . . . . . . . . . . . . . . . . . 38 Heaviest Build 104 | 14 38 34 44 104 102 40 40 39 39 59 57 57 57 58 50 43 43 52 50 73 65 68 66 66 80 81 84 86 88 92 Greatest Support 124 | 20 20 20 45 80 80 48 48 48 48 57 40 40 40 36 45 48 48 72 72 78 78 78 79 76 78 78 78 100 102 124 Greatest Overweight (x) 10 | . 10 3 1 1 4 . . . . 1 1 1 1 1 1 1 . 1 1 1 . . . . 1 1 1 1 1 1 Average Overweight (x) . | . 1 1 . . . . . . . . 1 1 1 1 . . . . . . . . . . . . . . . . Largest Inventory Capacity 25 | 8 15 15 15 25 25 15 15 15 15 20 15 15 15 15 15 15 15 15 15 15 15 15 15 15 15 15 15 15 15 15 Average Capacity 15 | 8 14 15 15 24 16 15 15 15 15 15 15 15 15 15 15 15 15 15 15 15 15 15 15 15 15 15 15 15 15 14 Most Carried 25 | 6 15 15 15 25 25 15 15 15 15 19 15 15 15 15 14 15 15 15 15 15 15 15 15 15 15 15 15 15 15 15 Average Carried 14 | 6 12 14 13 20 15 15 14 15 14 14 14 14 14 14 12 14 15 14 15 14 15 14 14 15 14 14 14 14 13 13 Final Capacity 25 | 8 15 15 15 25 15 15 15 15 15 15 15 15 15 15 15 15 15 15 15 15 15 15 15 15 15 15 15 15 15 5 Final Carried 25 | 6 15 15 14 25 15 15 15 15 15 15 14 15 15 14 13 15 15 15 15 15 15 15 15 15 15 15 15 14 15 4 Class Distribution -------------------- 18% | Mutant 16% | Hacker-Mutant 13% | Hacker-Ninja 12% | Hacker-Scout 10% | Scavenger-Mutant 7% | Scavenger-Scout 4% | Scavenger-Ninja 3% | Hacker-Assassin 3% | Scavenger-Skirmisher Dominant Class ---------------- Mutant | -10/Materials Mutant | -10/Mines Mutant | -9/Materials Mutant | -8/Materials Scavenger-Mutant | -7/Factory Hacker-Mutant | -7/Lower Caves Hacker-Mutant | -7/Lower Caves Hacker-Mutant | -7/Data Miner Hacker-Mutant | -6/Proximity Caves Hacker-Scout | -6/Factory Hacker-Assassin | -6/Extension Commander-Mutant | -6/Cetus Hacker-Mutant | -6/Archives Scavenger-Skirmisher | -6/Hub_04(d) Scavenger-Scout | -5/Factory Scavenger-Scout | -5/Upper Caves Scavenger-Scout | -5/Upper Caves Mutant | -5/Warlord Scavenger-Ninja | -4/Proximity Caves Hacker-Scout | -4/Factory Hacker-Ninja | -4/Upper Caves Hacker-Ninja | -4/Upper Caves Hacker-Ninja | -4/Zhirov Hacker-Ninja | -3/Proximity Caves Hacker-Mutant | -3/Research Hacker-Skirmisher | -3/Testing Hacker-Ninja | -2/Research Hacker-Ninja | -2/Quarantine Hacker-Ninja | -2/Section 7 Hacker-Mutant | -1/Access Resources | -11 -10 -10 -9 -8 -7 -7 -7 -7 -6 -6 -6 -6 -6 -6 -5 -5 -5 -5 -4 -4 -4 -4 -4 -3 -3 -3 -2 -2 -2 -1 ----------- Run | Yrd Mat Min Mat Mat Fac Low Low Dat Pro Fac Ext Cet Arc Hub Fac Upp Upp War Pro Fac Upp Upp Zhi Pro Res Tes Res Qua Sec Acc Matter Collected 7875 | 200 366 202 214 509 428 58 391 . 93 982 340 60 294 100 70 150 16 645 40 863 1 174 70 30 146 242 297 194 381 319 Remotely . | . . . . . . . . . . . . . . . . . . . . . . . . . . . . . . . Salvage Created 11284 | . 544 119 1184 756 625 42 367 . 186 1429 467 111 577 30 70 . . 840 . 1046 . 206 396 . 110 304 162 194 624 895 Parts 643 | . 37 2 84 48 59 3 21 . 6 72 28 4 44 2 2 . . 40 . 47 . 5 3 . 4 19 5 10 34 64 Haulers Intercepted 7 | . . . 2 3 1 . . . . . . . . . . . . . . 1 . . . . . . . . . . Recyclers Shooed 10 | . 2 . 3 . . . . . . 1 1 . . . . . . . . . . . . . 1 . . 1 . 1 Parts Field Recycled . | . . . . . . . . . . . . . . . . . . . . . . . . . . . . . . . Retrieved Matter . | . . . . . . . . . . . . . . . . . . . . . . . . . . . . . . . Parts Self-Destructed 14 | . . . . . . . 5 . 3 . . . . . . . . . . . . 5 1 . . . . . . . Prevented 2 | . . . . . . . . . 2 . . . . . . . . . . . . . . . . . . . . . Kills | -11 -10 -10 -9 -8 -7 -7 -7 -7 -6 -6 -6 -6 -6 -6 -5 -5 -5 -5 -4 -4 -4 -4 -4 -3 -3 -3 -2 -2 -2 -1 ------- Run | Yrd Mat Min Mat Mat Fac Low Low Dat Pro Fac Ext Cet Arc Hub Fac Upp Upp War Pro Fac Upp Upp Zhi Pro Res Tes Res Qua Sec Acc Combat Hostiles Destroyed 176 | . 11 9 31 15 22 . 8 . 4 23 3 1 2 . 1 . . 14 . 7 . 1 . . 2 3 1 2 7 9 Melee 37 | . . . . . 3 . 4 . . 7 . . . . 1 . . . . 2 . 1 . . . 2 . 2 7 8 Guns 28 | . 11 . . . . . . . . 11 3 1 2 . . . . . . . . . . . . . . . . . Cannons 64 | . . 7 24 10 . . . . . . . . . . . . . 14 . 5 . . . . 2 1 1 . . . AOE 46 | . . 2 7 5 18 . 4 . 4 5 . . . . . . . . . . . . . . . . . . . 1 Classes Destroyed 22 | . 5 2 4 1 2 1 . . . 2 . . . . . . . 5 . . . . . . . . . . . . Worker 14 | . 2 . 2 1 4 . . . . 2 . . . . . . . . . 1 . . . . . . . 1 1 . Builder 9 | . . . . 1 4 . . . . 1 . . . . . . . . . . . . . . . . . . . 3 Tunneler 1 | . . . . . 1 . . . . . . . . . . . . . . . . . . . . . . . . . Hauler 7 | . . . 2 3 1 . . . . . . . . . . . . . . 1 . . . . . . . . . . Recycler 11 | . 3 . 1 1 . . . . . 1 1 . . . . . . . . 2 . . . . . . . 1 . 1 Operator 19 | . . . 3 1 . . . . . 1 2 . 9 1 . . . . . 1 . . . . . . . . . 1 Watcher 26 | . 1 . 2 2 2 . . . . 2 1 1 . . . . . . . 6 . . . . . 3 2 . 1 3 Swarmer 47 | . 6 . 13 3 15 . 4 . . 4 . . . . . . . . . . . . . . . . . 2 . . Cutter 3 | . . . . . . . . . . 2 . . . . . . . . . . . . . . . . . . . 1 Saboteur 1 | . . . . . . . . . . . . . . . . . . 1 . . . . . . . . . . . . Grunt 53 | . 5 2 11 9 4 . 4 . . 10 . . . . . . . 3 . 2 . . . . . . 1 . 2 . Brawler 1 | . . . . . . . . . . . . . . . . . . 1 . . . . . . . . . . . . Duelist 3 | . . . 1 1 . . . . . 1 . . . . . . . . . . . . . . . . . . . . Protector 4 | . . . . . . . . . . . . . . . . . . 4 . . . . . . . . . . . . Sentry 17 | . . . 6 2 . . . . . . 3 . 2 . 1 . . . . 1 . . . . 1 . . . 1 . Demolisher 3 | . . 1 . . . . . . . . . . . . . . . 2 . . . . . . . . . . . . Specialist 2 | . . . . . . . . . . . . . . . . . . 2 . . . . . . . . . . . . Hunter 6 | . . . . . . . . . . 2 . . . . . . . . . . . . . . . 1 . . 2 1 Programmer 24 | . . . . . 3 . . . . 4 . . . . . . . . . 4 . 1 . . 1 2 . . 2 7 Cetus Guard 1 | . . . . . . . . . . . . 1 . . . . . . . . . . . . . . . . . . Striker 1 | . . . . . . . . . . . . . . . . . . 1 . . . . . . . . . . . . Samaritan 5 | . . . . . . 1 4 . . . . . . . . . . . . . . . . . . . . . . . Assembled 6 | . . 6 . . . . . . . . . . . . . . . . . . . . . . . . . . . . Thug 5 | . . . . . . . . . 4 . . . 1 . . . . . . . . . . . . . . . . . Best Kill Streak 11 | . 5 2 6 5 11 . 4 . 2 7 2 2 5 1 1 . . 5 . 3 . 1 . . 2 2 2 2 4 5 Combat Bots Only 10 | . 5 2 6 4 10 . 4 . 2 5 1 1 2 . 1 . . 5 . 2 . 1 . . 2 2 1 2 3 4 Max Kills in Single Turn 4 | . 1 1 2 3 4 1 2 . 1 3 1 1 1 1 1 . . 1 . 1 . 1 . . 1 1 1 1 1 1 Gunslinging . | . . . . . . . . . . . . . . . . . . . . . . . . . . . . . . . Exploded 3 | . . 1 2 2 3 . 2 . 1 2 . . . . . . . . . . . . . . . . . . . 1 Melee 1 | . . . . . 1 . 1 . . 1 . . . . 1 . . . . 1 . 1 . . . 1 . 1 1 1 Uniques/NPCs Destroyed . | . . . . . . . . . . . . . . . . . . . . . . . . . . . . . . . Combat | -11 -10 -10 -9 -8 -7 -7 -7 -7 -6 -6 -6 -6 -6 -6 -5 -5 -5 -5 -4 -4 -4 -4 -4 -3 -3 -3 -2 -2 -2 -1 -------- Run | Yrd Mat Min Mat Mat Fac Low Low Dat Pro Fac Ext Cet Arc Hub Fac Upp Upp War Pro Fac Upp Upp Zhi Pro Res Tes Res Qua Sec Acc Hostile Shots Fired 1134 | . 42 36 105 70 70 . 59 . 13 114 73 1 . 38 16 . . 30 8 35 . 8 . . 17 31 3 7 106 252 Missed 427 | . 9 7 32 21 26 . 24 . 6 44 27 . . 17 5 . . 13 4 13 . 4 . . 3 9 . 2 50 111 Damage Taken 13353 | . 305 542 1025 739 712 . 550 . 182 1474 335 13 . 203 236 . . 457 79 445 . 81 . . 342 383 70 150 1102 3928 Core 3098 | . 107 133 59 82 238 . 136 . 38 323 28 . . 40 84 . . 34 16 22 . . . . 77 23 . . 51 1607 Absorbed by Shields 195 | . . . . . . . . . . . 45 13 . . . . . . . . . . . . . . . 44 93 . Redirected to Shielding 113 | . . . . . . . . . . . . . . . 13 . . 14 . . . . . . . . . . 86 . Regen/Repaired (Parts) 1689 | . . . . . 77 . . . . 71 . . . 98 67 5 . 37 4 28 . . . . . . . . 1092 210 Core Remaining (%) 72 | 100 . 4 85 85 . . . . 41 . . . . 54 . . . . 86 . . . . 98 . 92 . . 80 . Volleys Fired 706 | . 35 21 89 51 21 . 7 . 6 70 38 4 22 7 10 . . 60 24 56 7 31 . 20 20 43 12 2 7 43 Largest 2 | . 2 2 2 2 2 . 1 . 1 2 2 2 2 2 1 . . 1 1 1 1 1 . 1 1 1 1 1 1 1 Hottest 130 | . 78 78 120 120 99 . 39 . 39 90 66 66 68 66 90 . . 61 90 90 90 90 . 90 90 90 130 130 130 130 Shots Fired 970 | . 68 38 163 95 25 . 7 . 6 112 52 8 43 14 10 . . 60 24 57 7 32 . 21 21 43 12 2 7 43 Gun 260 | . 55 . . . . . . . . 88 52 8 43 14 . . . . . . . . . . . . . . . . Cannon 643 | . 13 28 149 88 8 . . . . 21 . . . . 10 . . 60 24 57 7 32 . 21 21 43 12 2 7 40 Launcher 67 | . . 10 14 7 17 . 7 . 6 3 . . . . . . . . . . . . . . . . . . . 3 Special . | . . . . . . . . . . . . . . . . . . . . . . . . . . . . . . . Kinetic 451 | . 41 28 . 37 4 . . . . 88 52 8 43 14 . . . 60 . 43 . . . . 10 16 7 . . . Thermal 452 | . 27 . 149 51 4 . . . . 21 . . . . 10 . . . 24 14 7 32 . 21 11 27 5 2 7 40 Explosive 47 | . . . 14 7 17 . 7 . 2 . . . . . . . . . . . . . . . . . . . . . Electromagnetic 20 | . . 10 . . . . . . 4 3 . . . . . . . . . . . . . . . . . . . 3 Robot Hit Streak 20 | . 13 5 9 8 5 . 1 . 1 9 5 2 12 3 . . . 10 . 11 . . . . 6 13 20 . . 1 Robot Miss Streak 5 | . 3 4 5 4 3 . 2 . 2 2 4 2 2 2 . . . 4 . 1 . . . . 1 . . . 1 1 Penetration Max 2 | . . . . . . . . . . 2 1 1 1 . . . . 1 . . . . . . . . . . . . Secondary Targets 5 | . 3 . . . . . . . . 1 . 1 . . . . . . . . . . . . . . . . . . Max Gunslinging Chain 1 | . 1 . . . . . . . . 1 . 1 . . . . . . . . . . . . . . . . . . Shots Hit Robots 617 | . 47 19 81 56 32 2 16 . 1 79 32 4 28 7 3 . . 41 . 49 . 6 6 . 8 21 9 5 31 34 Core Hits 370 | . 24 12 47 35 36 . 14 . 9 49 13 2 21 2 2 . . 23 . 21 . 2 5 . 2 8 2 4 13 24 Critical Kills 62 | . . . . . 1 . . . . 10 6 2 11 1 . . . 13 . 10 . . . . 2 4 2 . . . Critical Parts Destroyed 58 | . . . . . 1 . . . . 15 11 3 4 . . . . 7 . 7 . . . . 5 3 2 . . . Critical Strikes 151 | . 4 . . 2 4 . . . . 25 19 5 15 1 . . . 23 . 22 . . . . 7 9 4 . 7 4 Burn 4 | . 4 . . . . . . . . . . . . . . . . . . . . . . . . . . . . . Meltdown 1 | . . . . . 1 . . . . . . . . . . . . . . . . . . . . . . . . . Destroy 123 | . . . . . . . . . . 25 19 5 15 1 . . . 23 . 17 . . . . 7 7 4 . . . Blast 2 | . . . . 2 . . . . . . . . . . . . . . . . . . . . . . . . . . Smash 1 | . . . . . 1 . . . . . . . . . . . . . . . . . . . . . . . . . Sever 20 | . . . . . 2 . . . . . . . . . . . . . . 5 . . . . . 2 . . 7 4 Melee Attacks 330 | . . . . . 42 2 21 . . 59 1 . . . 7 . 2 6 1 35 . 8 6 . 3 8 7 14 49 59 Impact 4 | . . . . . 4 . . . . . . . . . . . . . . . . . . . . . . . . . Slashing 316 | . . . . . 38 2 21 . . 59 1 . . . 7 . 1 2 1 35 . 8 6 . 3 8 7 14 49 54 Piercing 10 | . . . . . . . . . . . . . . . . . 1 4 . . . . . . . . . . . 5 Sneak Attacks 31 | . . . . . 6 2 5 . . 2 1 . . . . . . . . 4 . . . . . . 1 2 2 6 Combat Hostiles 1 | . . . . . . . . . . . . . . . . . . . . . . . . . . . . . . 1 Follow-up Attacks 15 | . . . . . 2 . 2 . . 1 . . . . . . . . . . . . . . . . . 1 . 9 Damage Inflicted 23717 | . 659 472 2738 1866 2843 130 1236 . 466 2422 384 37 233 45 135 . . 676 . 1420 . 387 537 . 194 612 295 437 2762 2731 Guns 1563 | . 495 . . . . . . . . 490 263 37 233 45 . . . . . . . . . . . . . . . . Cannons 5373 | . 164 337 1868 1211 160 . . . . . . . . . . . . 676 . 526 . . . . 146 161 124 . . . Explosions 5934 | . . 135 824 634 1837 . 657 . 466 968 . . . . . . . . . . . . . . . . . . . 413 Melee 10763 | . . . . . 846 130 579 . . 964 121 . . . 135 . . . . 894 . 387 537 . 48 451 171 437 2762 2301 Ramming 84 | . . . 46 21 . . . . . . . . . . . . . . . . . . . . . . . . . 17 Kinetic 3965 | . 401 337 . 477 49 . . . . 490 263 37 233 45 . . . 676 . 526 . . . . 146 161 124 . . . Thermal 3678 | . 258 . 2041 734 111 . . . 109 338 . . . . . . . . . . . . . . . . . . . 87 Explosive 4292 | . . . 651 634 1837 . 657 . 162 351 . . . . . . . . . . . . . . . . . . . . Electromagnetic 935 | . . 135 . . . . . . 195 279 . . . . . . . . . . . . . . . . . . . 326 Impact 130 | . . . . . 130 . . . . . . . . . . . . . . . . . . . . . . . . . Slashing 10549 | . . . . . 716 130 579 . . 964 121 . . . 135 . . . . 894 . 387 537 . 48 451 171 437 2762 2217 Piercing 84 | . . . . . . . . . . . . . . . . . . . . . . . . . . . . . . 84 Highest Corruption 23 | . . 9 6 . 1 1 1 1 1 3 3 . . 2 5 5 5 5 . 4 4 5 5 5 3 3 . . 1 23 Average Corruption 3 | . . 7 6 . 1 1 1 1 1 2 2 . . 1 2 5 5 5 . 3 4 4 5 5 2 2 . . 1 10 Corruption Purged 6 | . . . . . . . . . . . 3 . . . . . . . . . . . . . 3 . . . . . Corruption Blocked 45 | . . . . . . . . . . . . . . . . . . . . . . . . . . . 45 . . . Effects 154 | . . . 15 . 10 2 3 1 1 48 3 . . 1 6 2 4 . . 7 3 12 3 6 3 . . . 3 21 Message Errors 34 | . . . 7 . 1 1 . . . 8 1 . . . 3 . 1 . . 1 . . 1 3 . . . . . 7 Matter Fused 38 | . . . 2 . 2 1 2 . . 15 . . . . 3 . 1 . . 2 2 2 . . . . . . 2 4 Heat Flow Errors 23 | . . . 1 . 3 . 1 . . 7 1 . . . . 1 1 . . 2 1 . 2 . . . . . . 3 Energy Discharges 20 | . . . 1 . 4 . . 1 . 4 . . . 1 . 1 1 . . . . 5 . . . . . . . 2 Parts Rejected 4 | . . . . . . . . . . 1 . . . . . . . . . 1 . . . . . . . . 1 1 Parts Fused 3 | . . . . . . . . . . 1 . . . . . . . . . . . 1 . 1 . . . . . . Data Loss (minor) 18 | . . . 2 . . . . . 1 8 1 . . . . . . . . . . 3 . 1 1 . . . . 1 Data Loss (major) 5 | . . . 1 . . . . . . 1 . . . . . . . . . . . . . . 1 . . . . 2 Misfires 4 | . . . . . . . . . . . . . . . . . . . . 1 . 1 . 1 1 . . . . . Alerts 2 | . . . . . . . . . . 1 . . . . . . . . . . . . . . . . . . . 1 Weapon Failures 3 | . . . 1 . . . . . . 2 . . . . . . . . . . . . . . . . . . . . Overload Shots . | . . . . . . . . . . . . . . . . . . . . . . . . . . . . . . . Overflow Damage 1739 | . . 1 123 21 160 96 105 . 9 297 86 . . . . . . . . 91 . 107 80 . . 4 122 82 132 223 Projectiles 19 | . . . 2 17 . . . . . . . . . . . . . . . . . . . . . . . . . . Explosions 346 | . . 1 121 4 19 . . . 9 184 . . . . . . . . . . . . . . . . . . . 8 Melee 1374 | . . . . . 141 96 105 . . 113 86 . . . . . . . . 91 . 107 80 . . 4 122 82 132 215 Knockbacks 9 | . . 2 1 5 1 . . . . . . . . . . . . . . . . . . . . . . . . . Impact 1 | . . . 1 . . . . . . . . . . . . . . . . . . . . . . . . . . . Kinetic 8 | . . 2 . 5 1 . . . . . . . . . . . . . . . . . . . . . . . . . Secondary . | . . . . . . . . . . . . . . . . . . . . . . . . . . . . . . . Self-Inflicted Damage 281 | . . 40 42 . 77 . . . 36 . . . . . . . . . . . . . . . . . . . . 86 Shots 13 | . . 4 2 . 2 . . . 1 . . . . . . . . . . . . . . . . . . . . 4 Rammed 2 | . . . . 1 . . . . . . . . . . . . . . . . . . . . . . . . . 1 Targets Rammed 15 | . 2 2 7 3 . . . . . . . . . . . . . . . . . . . . . . . . . 1 Kicked 11 | . 2 2 7 . . . . . . . . . . . . . . . . . . . . . . . . . . . Crushed 2 | . . . . 2 . . . . . . . . . . . . . . . . . . . . . . . . . . Highest Temperature 352 | . 108 . 258 78 270 . 225 . 17 272 135 . . 39 184 258 252 80 152 352 311 62 202 . 20 36 184 . 252 261 Average Temperature 75 | . 40 . 51 33 106 . 70 . 9 82 59 . . 9 54 139 129 19 56 112 59 22 87 . 14 10 78 . 114 98 Received Heat Transfer 1778 | . 63 60 192 369 99 . 45 . 81 288 93 . . 36 102 . . 58 33 45 . . . . 18 . 18 4 54 120 Effects 7 | . . . . . . . . . . . . . . . . . . . . 2 3 . 1 . . . . . . 1 Shutdowns 1 | . . . . . . . . . . . . . . . . . . . . 1 . . . . . . . . . . Energy Bleed 2 | . . . . . . . . . . . . . . . . . . . . . . . 1 . . . . . . 1 Interference 4 | . . . . . . . . . . . . . . . . . . . . 1 3 . . . . . . . . . Siege Activations . | . . . . . . . . . . . . . . . . . . . . . . . . . . . . . . . Robots Corrupted . | . . . . . . . . . . . . . . . . . . . . . . . . . . . . . . . Combat Hostiles . | . . . . . . . . . . . . . . . . . . . . . . . . . . . . . . . Parts Fried 2 | . . . . . . . . . 2 . . . . . . . . . . . . . . . . . . . . . Impact Corruptions 1 | . . . . . 1 . . . . . . . . . . . . . . . . . . . . . . . . . Robots Melted 1 | . . . . . 1 . . . . . . . . . . . . . . . . . . . . . . . . . Combat Hostiles 1 | . . . . . 1 . . . . . . . . . . . . . . . . . . . . . . . . . Parts Melted 13 | . 1 . 2 1 3 . . . . 2 . . . . . . . 4 . . . . . . . . . . . . Heat Transferred 5952 | . 1073 . 3097 1184 148 . . . 100 200 . . . . . . . . . . . . . . . . . . . 150 Parts Sabotaged . | . . . . . . . . . . . . . . . . . . . . . . . . . . . . . . . Parts Stolen . | . . . . . . . . . . . . . . . . . . . . . . . . . . . . . . . Parts Stripped . | . . . . . . . . . . . . . . . . . . . . . . . . . . . . . . . Power Chain Reactions 6 | . . 2 . . . . . . 3 . . . . . . . . . . . . . . . . . . . . 1 Alert | -11 -10 -10 -9 -8 -7 -7 -7 -7 -6 -6 -6 -6 -6 -6 -5 -5 -5 -5 -4 -4 -4 -4 -4 -3 -3 -3 -2 -2 -2 -1 ------- Run | Yrd Mat Min Mat Mat Fac Low Low Dat Pro Fac Ext Cet Arc Hub Fac Upp Upp War Pro Fac Upp Upp Zhi Pro Res Tes Res Qua Sec Acc Peak Influence 959 | . 305 49 874 600 550 . . . . 959 818 712 584 881 397 . . . . 206 . . . . 121 243 218 247 318 343 Initial 452 | . . . . 340 123 . . . . . 452 431 284 204 358 . . . . 56 . . . . . 36 74 122 15 144 Average 276 | . 148 22 390 402 256 . . . . 367 402 577 546 557 324 . . . . 107 . . . . 42 126 168 92 182 184 Maximum Alert Level 3 | . 1 . 3 2 2 . . . . 3 3 3 2 3 1 . . . . 1 . . . . . 1 1 1 1 1 Low Security (%) 50 | 100 78 100 30 . 47 . . . . 50 30 . . . 15 . . . . 99 . . . . 100 81 91 83 61 53 Level 1 23 | . 21 . 24 50 35 . . . . 11 17 . 9 26 84 . . . . . . . . . . 18 8 16 38 46 Level 2 16 | . . . 32 49 17 . . . . 5 35 74 90 38 . . . . . . . . . . . . . . . . Level 3 8 | . . . 11 . . . . . . 31 16 25 . 34 . . . . . . . . . . . . . . . . Level 4 . | . . . . . . . . . . . . . . . . . . . . . . . . . . . . . . . Level 5 . | . . . . . . . . . . . . . . . . . . . . . . . . . . . . . . . High Security . | . . . . . . . . . . . . . . . . . . . . . . . . . . . . . . . Max Security . | . . . . . . . . . . . . . . . . . . . . . . . . . . . . . . . Squads Dispatched 75 | . 2 1 4 2 10 . . . . 16 3 . . 6 5 . . . . 4 . . . . 3 2 2 4 4 7 Investigation 22 | . 1 1 1 . 3 . . . . 5 . . . 4 4 . . . . 1 . . . . . . 1 . . 1 Extermination 13 | . . . . . 2 . . . . 3 . . . . 1 . . . . 2 . . . . . 1 . 1 1 2 Reinforcement 34 | . 1 . 1 2 5 . . . . 5 3 . . 1 . . . . . 1 . . . . 3 1 1 3 3 4 Assault 6 | . . . 2 . . . . . . 3 . . . 1 . . . . . . . . . . . . . . . . Garrison . | . . . . . . . . . . . . . . . . . . . . . . . . . . . . . . . Intercept . | . . . . . . . . . . . . . . . . . . . . . . . . . . . . . . . Searches Triggered . | . . . . . . . . . . . . . . . . . . . . . . . . . . . . . . . Construction Impeded 4 | . . . . 1 1 . . . . . . . . 1 . . . . . . . . . . . . . . . 1 Haulers Reinforced 3 | . . . . . 1 . . . . . . . . . . . . . . 1 . . . . . . . . 1 . Active Scanning Responses . | . . . . . . . . . . . . . . . . . . . . . . . . . . . . . . . Cargo Convoy Interrupts . | . . . . . . . . . . . . . . . . . . . . . . . . . . . . . . . Stealth | -11 -10 -10 -9 -8 -7 -7 -7 -7 -6 -6 -6 -6 -6 -6 -5 -5 -5 -5 -4 -4 -4 -4 -4 -3 -3 -3 -2 -2 -2 -1 --------- Run | Yrd Mat Min Mat Mat Fac Low Low Dat Pro Fac Ext Cet Arc Hub Fac Upp Upp War Pro Fac Upp Upp Zhi Pro Res Tes Res Qua Sec Acc Distress Signals 27 | . 2 . 3 1 2 . . . . 1 4 2 . 1 . . . . . . . . . . 3 . 2 1 1 4 Communications Jammed 11 | . . . . . . . . . . . . . . . . . . . . . . . . . . . . . . 11 Distress Signals 9 | . . . . . . . . . . . . . . . . . . . . . . . . . . . . . . 9 Times Spotted 499 | . 19 14 47 17 40 . 10 . 4 58 37 10 11 18 14 . . 52 6 15 . 1 . . 12 7 5 7 22 73 Peak Tracking Total 28 | . 5 4 6 4 5 . 4 . 4 8 8 5 1 7 6 . . 9 3 3 . 1 . . 6 2 2 2 6 28 Tactical Retreats 48 | . 1 . 3 . 4 . 2 . 1 14 1 . . 2 3 . . 1 3 . . . . . . . . . 3 10 Traps | -11 -10 -10 -9 -8 -7 -7 -7 -7 -6 -6 -6 -6 -6 -6 -5 -5 -5 -5 -4 -4 -4 -4 -4 -3 -3 -3 -2 -2 -2 -1 ------- Run | Yrd Mat Min Mat Mat Fac Low Low Dat Pro Fac Ext Cet Arc Hub Fac Upp Upp War Pro Fac Upp Upp Zhi Pro Res Tes Res Qua Sec Acc Traps Triggered 19 | . 7 . 1 . 2 . . . . . 5 . . 1 2 . . . . . . . . . . . . . . 1 Indirectly . | . . . . . . . . . . . . . . . . . . . . . . . . . . . . . . . Trap Hack Attempts . | . . . . . . . . . . . . . . . . . . . . . . . . . . . . . . . Triggered . | . . . . . . . . . . . . . . . . . . . . . . . . . . . . . . . Disarmed 4 | . . . . . . . . . . . . . . . . . . . . . . . . . . 4 . . . . Reprogrammed . | . . . . . . . . . . . . . . . . . . . . . . . . . . . . . . . Reused . | . . . . . . . . . . . . . . . . . . . . . . . . . . . . . . . Traps Extracted . | . . . . . . . . . . . . . . . . . . . . . . . . . . . . . . . Installed . | . . . . . . . . . . . . . . . . . . . . . . . . . . . . . . . Triggered 9 | . . . . . . . . . . . . . . . . . . 9 . . . . . . . . . . . . Machines | -11 -10 -10 -9 -8 -7 -7 -7 -7 -6 -6 -6 -6 -6 -6 -5 -5 -5 -5 -4 -4 -4 -4 -4 -3 -3 -3 -2 -2 -2 -1 ---------- Run | Yrd Mat Min Mat Mat Fac Low Low Dat Pro Fac Ext Cet Arc Hub Fac Upp Upp War Pro Fac Upp Upp Zhi Pro Res Tes Res Qua Sec Acc Machines Disabled 47 | . . . 7 6 2 . . . . 8 2 . 3 4 1 . . . . . . . . . . 4 1 2 5 2 Max in Single Turn 8 | . . . 1 4 1 . . . . 8 . . . . 1 . . . . . . . . . . 1 1 1 1 1 Garrison Access 8 | . . . . . . . . . . 3 . . . . . . . . . 1 . . . . . 1 . 1 1 1 Machines Repaired . | . . . . . . . . . . . . . . . . . . . . . . . . . . . . . . . Machines Dismantled . | . . . . . . . . . . . . . . . . . . . . . . . . . . . . . . . Machines Sabotaged . | . . . . . . . . . . . . . . . . . . . . . . . . . . . . . . . Overloaded Fab Kills . | . . . . . . . . . . . . . . . . . . . . . . . . . . . . . . . Hacking | -11 -10 -10 -9 -8 -7 -7 -7 -7 -6 -6 -6 -6 -6 -6 -5 -5 -5 -5 -4 -4 -4 -4 -4 -3 -3 -3 -2 -2 -2 -1 --------- Run | Yrd Mat Min Mat Mat Fac Low Low Dat Pro Fac Ext Cet Arc Hub Fac Upp Upp War Pro Fac Upp Upp Zhi Pro Res Tes Res Qua Sec Acc Machines Accessed 134 | . 2 1 7 5 12 . 1 3 . 18 6 1 . 4 9 1 . 3 1 13 . . 4 . 4 12 2 10 6 9 Terminals 78 | . 2 . 6 4 7 . . . . 8 6 1 . 4 6 . . . 1 4 . . . . 4 7 1 7 4 6 Fabricators 14 | . . . . . 4 . . . . 4 . . . . 1 . . . . 3 . . . . . . 1 . . 1 Repair Stations 9 | . . . . . 1 . . . . 2 . . . . 1 . . . . 3 . . . . . 1 . 1 . . Recycling Units . | . . . . . . . . . . . . . . . . . . . . . . . . . . . . . . . Scanalyzers 10 | . . . 1 1 . . . . . 1 . . . . . . . . . 2 . . . . . 3 . 1 1 . Garrison Access 10 | . . . . . . . . . . 3 . . . . 1 . . . . 1 . . . . . 1 . 1 1 2 Total Hacks 437 | . 6 1 14 9 33 . 1 26 . 53 18 4 . 14 34 1 . 3 1 62 . . 17 . 16 31 6 37 22 28 Successful 261 | . 3 1 9 4 18 . 1 26 . 31 6 1 . 5 18 1 . 3 1 46 . . 17 . 7 18 3 21 11 10 Failed 176 | . 3 . 5 5 15 . . . . 22 12 3 . 9 16 . . . . 16 . . . . 9 13 3 16 11 18 Catastrophic 38 | . . . 3 1 3 . . . . 9 5 2 . 2 1 . . . . 3 . . . . 2 2 1 2 . 2 Database Lockouts . | . . . . . . . . . . . . . . . . . . . . . . . . . . . . . . . Manual 212 | . 3 . 9 5 15 . . . . 21 16 1 . 14 22 . . 1 . 18 . . . . 16 16 3 28 12 12 Terminals 265 | . 6 . 12 7 17 . . . . 27 18 4 . 14 25 . . . 1 26 . . . . 16 19 3 32 16 22 Fabricators 37 | . . . . . 14 . . . . 8 . . . . 3 . . . . 6 . . . . . . 3 . . 3 Repair Stations 24 | . . . . . 2 . . . . 7 . . . . 4 . . . . 8 . . . . . 1 . 2 . . Recycling Units . | . . . . . . . . . . . . . . . . . . . . . . . . . . . . . . . Scanalyzers 42 | . . . 2 2 . . . . . 5 . . . . . . . . . 21 . . . . . 9 . 1 2 . Garrison Access 20 | . . . . . . . . . . 6 . . . . 2 . . . . 1 . . . . . 2 . 2 4 3 Terminal Hacks 131 | . 2 1 3 1 3 . 1 26 . 9 4 1 . 1 11 1 . 3 1 12 . . 17 . 5 5 1 14 4 5 Record 16 | . . . . . . . . 6 . . . . . . . . . 2 1 . . . 5 . . 1 . 1 . . Part Schematic 27 | . . . . . . . . 11 . 2 . . . . 1 . . . . 2 . . 4 . 2 . . 5 . . Robot Schematic 6 | . . . . . . . . 6 . . . . . . . . . . . . . . . . . . . . . . Robot Analysis 5 | . . . . . . . . . . . . . . . . . . . . 1 . . 4 . . . . . . . Prototype ID Bank 11 | . . . . . . . . 3 . 1 . . . . 1 . . . . 1 . . 4 . . . . . 1 . Open Door 5 | . . 1 . . . . 1 . . . . 1 . . . 1 . 1 . . . . . . . . . . . . Level Access Points 3 | . . . . . . . . . . . . . . 1 . . . . . . . . . . . 1 . . 1 . Branch Access Points 7 | . . . . . 1 . . . . 1 . . . . 1 . . . . 1 . . . . 1 . 1 . . 1 Emergency Access Points 1 | . . . . . . . . . . . . . . . . . . . . 1 . . . . . . . . . . Machine Index 1 | . . . . . . . . . . . . . . . . . . . . . . . . . . . . . 1 . Terminal Index 4 | . . . . . . . . . . 1 . . . . 1 . . . . 1 . . . . 1 . . . . . Fabricator Index 7 | . . . . . 1 . . . . 1 . . . . 1 . . . . 1 . . . . 1 . . 1 . 1 Repair Station Index 2 | . . . . . . . . . . . . . . . 1 . . . . 1 . . . . . . . . . . Scanalyzer Index 2 | . . . 1 . . . . . . . . . . . 1 . . . . . . . . . . . . . . . Alert Level 7 | . . . . . 1 . . . . 2 1 . . . 1 . . . . 1 . . . . . . . 1 . . Unreport Threat 8 | . . . . 1 . . . . . . 3 . . . 1 . . . . . . . . . . . . 3 . . Locate Traps 4 | . . . . . . . . . . 1 . . . . . . . . . 1 . . . . . . . . . 2 Disarm Traps 1 | . . . . . . . . . . . . . . . . . . . . . . . . . . 1 . . . . Recall Extermination 1 | . . . . . . . . . . . . . . . . . . . . . . . . . . . . 1 . . Recall Reinforcements 1 | . . . . . . . . . . . . . . . . . . . . . . . . . . . . . . 1 Hauler Manifests 2 | . 1 . 1 . . . . . . . . . . . . . . . . . . . . . . . . . . . Registered Components 1 | . . . 1 . . . . . . . . . . . . . . . . . . . . . . . . . . . Zone Layout 9 | . 1 . . . . . . . . . . . . . 2 . . . . 1 . . . . . 2 . 2 1 . Fabricator Hacks 24 | . . . . . 8 . . . . 7 . . . . 1 . . . . 4 . . . . . . 2 . . 2 Network Status 2 | . . . . . 1 . . . . . . . . . . . . . . 1 . . . . . . . . . . Load Schematic 13 | . . . . . 4 . . . . 4 . . . . 1 . . . . 2 . . . . . . 1 . . 1 Build 9 | . . . . . 3 . . . . 3 . . . . . . . . . 1 . . . . . . 1 . . 1 Repair Station Hacks 10 | . . . . . 2 . . . . 1 . . . . 3 . . . . 3 . . . . . . . 1 . . Scan Component 7 | . . . . . 1 . . . . 1 . . . . 2 . . . . 2 . . . . . . . 1 . . Repair 3 | . . . . . 1 . . . . . . . . . 1 . . . . 1 . . . . . . . . . . Recycling Unit Hacks . | . . . . . . . . . . . . . . . . . . . . . . . . . . . . . . . Scanalyzer 36 | . . . 2 2 . . . . . 5 . . . . . . . . . 20 . . . . . 5 . 1 1 . Insert Component 18 | . . . 1 1 . . . . . 2 . . . . . . . . . 8 . . . . . 4 . 1 1 . Analyze 18 | . . . 1 1 . . . . . 3 . . . . . . . . . 12 . . . . . 1 . . . . Garrison Access Hacks 8 | . . . . . . . . . . 3 . . . . . . . . . 1 . . . . . 1 . 1 1 1 Seal Access 8 | . . . . . . . . . . 3 . . . . . . . . . 1 . . . . . 1 . 1 1 1 Unauthorized Hacks 52 | . 1 . 4 1 5 . . . . 6 2 . . 4 3 . . . . 6 . . . . 2 7 . 4 5 2 Terminals 47 | . 1 . 4 1 4 . . . . 4 2 . . 4 3 . . . . 5 . . . . 2 6 . 4 5 2 Track 3 | . . . . . . . . . . . . . . . . . . . . 1 . . . . . 1 . . 1 . Assimilate 3 | . . . . . 1 . . . . . . . . . . . . . . 1 . . . . . . . . . 1 Botnet 37 | . 1 . 4 1 3 . . . . 4 2 . . 2 3 . . . . 2 . . . . 2 5 . 4 3 1 Disrupt 1 | . . . . . . . . . . . . . . . . . . . . . . . . . . . . . 1 . Operators 1 | . . . . . . . . . . . . . . . . . . . . 1 . . . . . . . . . . Sabotage 2 | . . . . . . . . . . . . . . 2 . . . . . . . . . . . . . . . . Fabricators 3 | . . . . . 1 . . . . 1 . . . . . . . . . 1 . . . . . . . . . . Recompile 3 | . . . . . 1 . . . . 1 . . . . . . . . . 1 . . . . . . . . . . Repair Stations 1 | . . . . . . . . . . 1 . . . . . . . . . . . . . . . . . . . . Mechanics 1 | . . . . . . . . . . 1 . . . . . . . . . . . . . . . . . . . . Recycling Units . | . . . . . . . . . . . . . . . . . . . . . . . . . . . . . . . Scanalyzers 1 | . . . . . . . . . . . . . . . . . . . . . . . . . . 1 . . . . Researchers 1 | . . . . . . . . . . . . . . . . . . . . . . . . . . 1 . . . . Garrison Access . | . . . . . . . . . . . . . . . . . . . . . . . . . . . . . . . Data Cores Recovered 4 | . . . 2 . . . . . . . 1 . . 1 . . . . . . . . . . . . . . . . Used . | . . . . . . . . . . . . . . . . . . . . . . . . . . . . . . . Hacking Detections 95 | . 2 . 4 5 10 . . . . 14 6 1 . 2 9 . . . . 8 . . . . 4 9 2 6 5 8 Full Trace Events 15 | . . . 1 . 2 . . . . 4 . . . 2 4 . . . . . . . . . . . 1 . . 1 Feedback Events 4 | . . . . . . . . . . . . . . 3 1 . . . . . . . . . . . . . . . Corruption 2 | . . . . . . . . . . . . . . 2 . . . . . . . . . . . . . . . . Hackware Fried 2 | . . . . . . . . . . . . . . 1 1 . . . . . . . . . . . . . . . Feedback Blocked . | . . . . . . . . . . . . . . . . . . . . . . . . . . . . . . . Robot Schematics Acquired 6 | . . . . . . . . 6 . . . . . . . . . . . . . . . . . . . . . . Robots Built . | . . . . . . . . . . . . . . . . . . . . . . . . . . . . . . . Authchips . | . . . . . . . . . . . . . . . . . . . . . . . . . . . . . . . Time . | . . . . . . . . . . . . . . . . . . . . . . . . . . . . . . . Total Robot Build Rating . | . . . . . . . . . . . . . . . . . . . . . . . . . . . . . . . Part Schematics Acquired 36 | . . . 1 1 . . . 11 . 4 . . . . 1 . . . . 6 . . 4 . 2 1 . 5 . . Parts Built 13 | . . . . . 6 . . . . 3 . . . . . . . . . 2 . . . . . . 1 . . 1 Authchips 3 | . . . . . 1 . . . . 1 . . . . . . . . . 1 . . . . . . . . . . Time 700 | . . . . . 141 . . . . 185 . . . . . . . . . 106 . . . . . . 204 . . 64 Total Part Build Rating 70 | . . . . . 30 . . . . 12 . . . . . . . . . 12 . . . . . . 8 . . 8 Parts Repaired 3 | . . . . . 1 . . . . . . . . . 1 . . . . 1 . . . . . . . . . . Time 197 | . . . . . 50 . . . . . . . . . 35 . . . . 112 . . . . . . . . . . Parts Recycled . | . . . . . . . . . . . . . . . . . . . . . . . . . . . . . . . Recycled Matter . | . . . . . . . . . . . . . . . . . . . . . . . . . . . . . . . Retrieved Matter . | . . . . . . . . . . . . . . . . . . . . . . . . . . . . . . . Retrieved Components . | . . . . . . . . . . . . . . . . . . . . . . . . . . . . . . . Parts Scanalyzed 10 | . . . 1 1 . . . . . 2 . . . . . . . . . 5 . . . . . 1 . . . . Part Schematics Acquired 10 | . . . 1 1 . . . . . 2 . . . . . . . . . 5 . . . . . 1 . . . . Parts Damaged 1 | . . . . . . . . . . . . . . . . . . . . 1 . . . . . . . . . . Bothacking | -11 -10 -10 -9 -8 -7 -7 -7 -7 -6 -6 -6 -6 -6 -6 -5 -5 -5 -5 -4 -4 -4 -4 -4 -3 -3 -3 -2 -2 -2 -1 ------------ Run | Yrd Mat Min Mat Mat Fac Low Low Dat Pro Fac Ext Cet Arc Hub Fac Upp Upp War Pro Fac Upp Upp Zhi Pro Res Tes Res Qua Sec Acc Used RIF Installer . | . . . . . . . . . . . . . . . . . . . . . . . . . . . . . . . Robots Hacked . | . . . . . . . . . . . . . . . . . . . . . . . . . . . . . . . Non-combat . | . . . . . . . . . . . . . . . . . . . . . . . . . . . . . . . Combat . | . . . . . . . . . . . . . . . . . . . . . . . . . . . . . . . Robot Hacks Applied . | . . . . . . . . . . . . . . . . . . . . . . . . . . . . . . . Relay Couplers Released . | . . . . . . . . . . . . . . . . . . . . . . . . . . . . . . . Fabnet Peak Effective % . | . . . . . . . . . . . . . . . . . . . . . . . . . . . . . . . Robots Rewired 28 | . . . . . . . . . . . 28 . . . . . . . . . . . . . . . . . . . Allies Hacked 1 | . . . . . . . . . . . . . . . . . . . . . . . . . . . . . . 1 Hacks Repelled . | . . . . . . . . . . . . . . . . . . . . . . . . . . . . . . . Allies | -11 -10 -10 -9 -8 -7 -7 -7 -7 -6 -6 -6 -6 -6 -6 -5 -5 -5 -5 -4 -4 -4 -4 -4 -3 -3 -3 -2 -2 -2 -1 -------- Run | Yrd Mat Min Mat Mat Fac Low Low Dat Pro Fac Ext Cet Arc Hub Fac Upp Upp War Pro Fac Upp Upp Zhi Pro Res Tes Res Qua Sec Acc Total Allies 41 | . . . . . 1 . . . . . 33 5 . . . . . . . 1 . . . . . . . . . 1 Largest Group 25 | . . . . . 1 . . . . . 21 25 7 5 . . . . . 1 . . . . . . . . . 1 Highest-Rated Group 1146 | . . . . . 26 . . . . . 743 1146 580 423 . . . . . 26 . . . . . . . . . 26 Highest-Rated Ally 159 | . . . . . 26 . . . . . 159 159 131 96 . . . . . 26 . . . . . . . . . 26 Total Orders 23 | . . . . . . . . . . . 16 4 2 1 . . . . . . . . . . . . . . . . STAY 1 | . . . . . . . . . . . . 1 . . . . . . . . . . . . . . . . . . RETURN 22 | . . . . . . . . . . . 16 3 2 1 . . . . . . . . . . . . . . . . Ally Attacks 390 | . . . . . . . . . . . 229 71 24 66 . . . . . . . . . . . . . . . . Total Damage 9616 | . . . . . . . . . . . 5405 1518 603 2090 . . . . . . . . . . . . . . . . Kills 63 | . . . . . . . . . . . 38 7 2 16 . . . . . . . . . . . . . . . . Allies Corrupted 1 | . . . . . . . . . . . . . . 1 . . . . . . . . . . . . . . . . Allies Melted 1 | . . . . . . . . . . . . . . . . . . . . . . . . . . . 1 . . . Intel | -11 -10 -10 -9 -8 -7 -7 -7 -7 -6 -6 -6 -6 -6 -6 -5 -5 -5 -5 -4 -4 -4 -4 -4 -3 -3 -3 -2 -2 -2 -1 ------- Run | Yrd Mat Min Mat Mat Fac Low Low Dat Pro Fac Ext Cet Arc Hub Fac Upp Upp War Pro Fac Upp Upp Zhi Pro Res Tes Res Qua Sec Acc Robot Analysis Total 5 | . . . . . . . . . . . . . . . . . . . . 1 . . 4 . . . . . . . Derelict Logs Recovered 11 | . . 1 . . . 1 1 . 1 . . . . . . 2 1 . . . 3 1 . . . . . . . . Drone Launches 27 | . . . . . . . . . . . 20 3 2 2 . . . . . . . . . . . . . . . . Drone Recoveries 25 | . . . . . . . . . . . 20 3 2 . . . . . . . . . . . . . . . . . Exploration | -11 -10 -10 -9 -8 -7 -7 -7 -7 -6 -6 -6 -6 -6 -6 -5 -5 -5 -5 -4 -4 -4 -4 -4 -3 -3 -3 -2 -2 -2 -1 ------------- Run | Yrd Mat Min Mat Mat Fac Low Low Dat Pro Fac Ext Cet Arc Hub Fac Upp Upp War Pro Fac Upp Upp Zhi Pro Res Tes Res Qua Sec Acc Turns Passed 22186 | 2 844 832 1254 1482 1625 227 517 60 426 2929 1564 279 394 471 533 158 214 647 1117 1187 192 549 128 271 629 728 363 508 656 1400 Spaces Moved 22725 | 2 355 385 662 534 1737 289 618 81 523 3069 914 217 260 381 632 323 397 909 696 1897 333 729 211 441 1063 872 437 1068 854 1836 Core 97 | . 2 . . . . . . . . . . . . . . . . . . . . . . . . . . . . 95 Treads 571 | . . . . 517 54 . . . . . . . . . . . . . . . . . . . . . . . . . Legs 1418 | 2 353 384 662 17 . . . . . . . . . . . . . . . . . . . . . . . . . . Wheels . | . . . . . . . . . . . . . . . . . . . . . . . . . . . . . . . Hover 20639 | . . 1 . . 1683 289 618 81 523 3069 914 217 260 381 632 323 397 909 696 1897 333 729 211 441 1063 872 437 1068 854 1741 Flight . | . . . . . . . . . . . . . . . . . . . . . . . . . . . . . . . Fastest Speed 21 | 120 120 190 120 163 48 71 71 71 71 65 110 110 102 105 38 42 42 31 31 36 45 45 41 41 41 41 41 21 30 30 Average Speed 70 | 120 191 191 136 239 63 71 71 71 71 73 110 110 108 105 52 45 42 42 60 41 45 45 43 41 47 62 45 40 46 56 Slowest Speed 550 | 120 550 330 190 245 326 71 71 71 71 144 110 110 110 108 105 105 42 102 108 97 45 45 47 41 97 97 97 97 97 116 Overloaded Moves 147 | . . . . . . . . . . . . . . . . . . 11 23 . . . . . . . . 25 8 80 Propulsion Burnouts . | . . . . . . . . . . . . . . . . . . . . . . . . . . . . . . . Robots Hopped . | . . . . . . . . . . . . . . . . . . . . . . . . . . . . . . . Cave-ins Triggered 1 | . . . 1 . . . . . . . . . . . . . . . . . . . . . . . . . . . Teleports 1 | . . . . . . . . . . . . . . . . . . . . . . . . . . . . . 1 . Exploration Rate (%) 57 | 2 50 73 73 52 51 54 76 69 62 64 89 78 98 31 25 58 51 91 67 32 60 78 61 67 27 93 19 86 28 31 Regions Visited 30 Branch Regions 20 Pre-discovered Areas 4 | . . . . . . . . 1 . . . . . . . . . . . . . . 3 . . . . . . . Known Exits Taken 25 | . . . . . 1 1 1 1 1 1 1 1 1 1 1 1 1 1 1 1 1 1 1 1 1 1 1 1 1 . Unknown Exits Taken 5 | 1 1 1 1 1 . . . . . . . . . . . . . . . . . . . . . . . . . . Scrap Searched 25 | . . . . . . 1 3 . 1 . . . . . . 5 2 . 4 . 1 5 . 3 . . . . . . Spaces Dug 185 | . . . 3 3 15 . 4 . . 40 . . . . 9 . 1 1 10 16 2 12 . 8 6 9 7 5 10 24 Terrain Destroyed 648 | . 1 18 148 25 76 . 45 . 39 56 . . 1 2 13 . 1 1 25 23 7 33 . 21 14 24 9 6 13 47 Melee 94 | . . . . . 15 . 4 . . 28 . . . . 3 . 1 1 1 9 . 1 . . 2 . 5 5 9 10 Projectile 247 | . 1 4 27 4 . . . . . 21 . . . . 10 . . . 24 14 7 32 . 21 12 24 4 1 4 37 AOE 302 | . . 14 121 21 61 . 41 . 39 5 . . . . . . . . . . . . . . . . . . . . Terrain Rammed . | . . . . . . . . . . . . . . . . . . . . . . . . . . . . . . . Walls Destroyed . | . . . . . . . . . . . . . . . . . . . . . . . . . . . . . . . Machines Disabled . | . . . . . . . . . . . . . . . . . . . . . . . . . . . . . . . Actions | -11 -10 -10 -9 -8 -7 -7 -7 -7 -6 -6 -6 -6 -6 -6 -5 -5 -5 -5 -4 -4 -4 -4 -4 -3 -3 -3 -2 -2 -2 -1 --------- Run | Yrd Mat Min Mat Mat Fac Low Low Dat Pro Fac Ext Cet Arc Hub Fac Upp Upp War Pro Fac Upp Upp Zhi Pro Res Tes Res Qua Sec Acc Total 27292 | 1 445 439 849 635 2178 306 656 82 569 3519 1418 251 331 437 805 335 442 1105 1356 2191 363 900 238 506 1153 987 576 1123 1014 2082 Wait 2472 | . 13 19 51 16 264 13 4 . 36 240 207 21 31 35 140 . 45 95 627 109 19 116 2 45 38 26 106 5 52 97 Move 22694 | 1 354 384 660 533 1736 288 617 80 522 3068 913 216 259 380 631 322 396 908 695 1896 332 728 210 440 1062 871 436 1067 853 1836 Hop . | . . . . . . . . . . . . . . . . . . . . . . . . . . . . . . . Pick Up 154 | . 9 4 7 13 20 . 1 . 1 19 3 4 3 3 1 6 . 4 1 17 . 3 2 . 7 3 2 4 6 11 Fast Attach 121 | . 15 . 7 5 7 . . . 2 10 1 1 2 5 2 1 . 8 . 7 . 2 7 . 2 13 2 4 11 7 Attach 86 | . 3 4 3 4 18 . 1 . 1 7 2 . 2 1 6 1 . 3 . 4 . . . . 4 . 2 4 4 12 Detach 15 | . 2 . . . 7 . . . . 1 . . . . 3 . . . . . . . . . 1 . . . . 1 Swap 254 | . 5 5 11 6 17 3 7 2 1 28 5 1 5 1 4 2 . 7 7 38 5 6 2 1 11 9 7 15 17 26 Drop 209 | . 7 . 13 4 30 . . . . 19 5 4 7 5 1 3 . 14 1 29 . 6 9 . 5 14 2 10 15 6 Fire 706 | . 35 21 89 51 21 . 7 . 6 70 38 4 22 7 10 . . 60 24 56 7 31 . 20 20 43 12 2 7 43 Melee 301 | . . . . . 38 2 19 . . 57 1 . . . 7 . 1 5 1 35 . 8 6 . 3 8 7 12 49 42 Ram 1 | . . . . . . . . . . . . . . . . . . . . . . . . . . . . . . 1 Kick 11 | . 2 2 7 . . . . . . . . . . . . . . . . . . . . . . . . . . . Crush 3 | . . . . 3 . . . . . . . . . . . . . . . . . . . . . . . . . . Escape Stasis 86 | . . . 1 . 20 . . . . . 65 . . . . . . . . . . . . . . . . . . . Rewire 179 | . . . . . . . . . . . 178 . . . . . . 1 . . . . . . . . . . . . Trap . | . . . . . . . . . . . . . . . . . . . . . . . . . . . . . . . Miscellaneous . | . . . . . . . . . . . . . . . . . . . . . . . . . . . . . . . Route ------- -11/Scrapyard -10/Materials (discovered 2 exits: Mat / *Min) -10/Mines (discovered 2 exits: *Mat x2) -9/Materials (discovered 4 exits: *Mat x2 / [*Min] / [*Sto]) -8/Materials -7/Factory (discovered 3 exits: *Fac / *Low x2) -7/Lower Caves -7/Lower Caves (discovered 2 exits: *Fac / *Dat) -7/Data Miner -6/Proximity Caves -6/Factory (discovered 6 exits: *Fac x2 / Low x2 / *Ext x2) -6/Extension (discovered 2 exits: *Fac / *Cet) -6/Cetus (discovered 2 exits: *Fac / *Arc) -6/Archives (discovered 3 exits: *Fac / *Hub x2) -6/Hub_04(d) (discovered 4 exits: *Fac x4) -5/Factory (discovered 3 exits: *Fac / *Upp x2) -5/Upper Caves -5/Upper Caves (discovered 2 exits: *Fac / *War) -5/Warlord -4/Proximity Caves -4/Factory (discovered 3 exits: *Res / *Upp x2) -4/Upper Caves -4/Upper Caves (discovered 2 exits: *Res / *Zhi) -4/Zhirov -3/Proximity Caves -3/Research (discovered 3 exits: *Arm / *Tes x2) -3/Testing -2/Research (discovered 3 exits: *Acc / *Qua x2) -2/Quarantine (discovered 2 exits: *Acc / *Sec) -2/Section 7 -1/Access (discovered 2 exits: *Sur / Com) History --------- Turn | Location | Event 1 | -11/Scrapyard | Discovered new exit (range 1) 3 | -11/Scrapyard | Entered Materials 362 | -10/Materials | Discovered new exit (range 13) 777 | -10/Materials | Build established: Mutant 816 | -10/Materials | Discovered new exit (range 15) 847 | -10/Materials | Entered Mines 848 | -10/Mines | Assembled infested the area 853 | -10/Mines | Assisted by a Guerilla fighting off Assembled 873 | -10/Mines | Learned Materials stockpile data 982 | -10/Mines | Core integrity fell below 50% 1210 | -10/Mines | Met a Derelict shopkeep closing up shop 1243 | -10/Mines | Core integrity fell below 20% 1276 | -10/Mines | Discovered new exit (range 12) 1407 | -10/Mines | Discovered new exit (range 14) 1679 | -10/Mines | Entered Materials 1679 | -9/Materials | Evolved 2 slots: Propulsion x1, Utility x1 1721 | -9/Materials | Discovered new exit (range 16) 2103 | -9/Materials | Discovered new exit (range 6) 2392 | -9/Materials | Discovered new exit (range 16) 2464 | -9/Materials | Crushed by falling debris 2855 | -9/Materials | Discovered new exit (range 15) 2879 | -9/Materials | First assault squad dispatched 2933 | -9/Materials | Entered another Materials area 2933 | -8/Materials | Evolved 2 slots: Propulsion x1, Utility x1 4004 | -8/Materials | Discovered new exit (range 15) 4325 | -8/Materials | Build established: Scavenger-Mutant 4415 | -8/Materials | Entered Factory 4415 | -7/Factory | Evolved 2 slots: Utility x2 4430 | -7/Factory | Discovered new exit (range 15) 4750 | -7/Factory | Identified exit to Factory 5170 | -7/Factory | Repaired Cmb. Airjet 5291 | -7/Factory | Discovered new exit (range 3) 5292 | -7/Factory | Identified exit to Lower Caves 5650 | -7/Factory | Fabricated Cmb. Airjet (x2) 5703 | -7/Factory | Fabricated Cmb. Airjet (x2) 5784 | -7/Factory | Destroyed 10 combat bots 5820 | -7/Factory | Fabricated Cmb. Airjet? 6040 | -7/Factory | Entered Lower Caves 6047 | -7/Lower Caves | Learned Factory stockpile data 6134 | -7/Lower Caves | Build established: Hacker-Mutant 6255 | -7/Lower Caves | Discovered new exit (range 14) 6264 | -7/Lower Caves | Identified exit to Lower Caves 6267 | -7/Lower Caves | Entered another Lower Caves area 6288 | -7/Lower Caves | Discovered exit to Factory (range 16) 6612 | -7/Lower Caves | Core integrity fell below 50% 6769 | -7/Lower Caves | Learned Factory stockpile data 6771 | -7/Lower Caves | Discovered new exit (range 9) 6783 | -7/Lower Caves | Identified exit to Data Miner 6784 | -7/Lower Caves | Entered Data Miner 6784 | -7/Data Miner | Discovered new exit (range 6) 6798 | -7/Data Miner | Met Data Miner 6816 | -7/Data Miner | Learned location of Section 7 (-2) 6816 | -7/Data Miner | Acquired the access code to Warlord's prototype stash 6823 | -7/Data Miner | Received God Mode back door access code from Data Miner 6844 | -7/Data Miner | Identified exit to Proximity Caves 6844 | -7/Data Miner | Entered Proximity Caves 6914 | -6/Proximity Caves | Learned Factory trap positions 6985 | -6/Proximity Caves | Lost 3 parts (1u2w) 7257 | -6/Proximity Caves | Discovered exit to Factory (range 5) 7270 | -6/Proximity Caves | Entered Factory 7270 | -6/Factory | Evolved 2 slots: Utility x2 7271 | -6/Factory | Loaded intel: 86 trap records 7375 | -6/Factory | Discovered new exit (range 10) 7381 | -6/Factory | Identified exit to Extension 7400 | -6/Factory | Identified exit to Lower Caves 7579 | -6/Factory | Build established: Hacker-Scout 8286 | -6/Factory | Discovered new exit (range 7) 8730 | -6/Factory | Fabricated Lgt. Regenerative Plating (x1) 8918 | -6/Factory | Fabricated Lrg. Storage Unit (x1) 9082 | -6/Factory | Build established: Hacker-Mutant 9529 | -6/Factory | Discovered new exit (range 18) 9675 | -6/Factory | Fabricated Combat Drone Bay? 9720 | -6/Factory | First assault squad dispatched 9887 | -6/Factory | Build established: Hacker-Scout 10199 | -6/Factory | Entered Extension 10739 | -6/Extension | Build established: Hacker-Assassin 10921 | -6/Extension | Rescued A7 10951 | -6/Extension | Rescued a captive Derelict 11053 | -6/Extension | Rescued a captive Derelict 11176 | -6/Extension | Spotted B-75 Beast 11192 | -6/Extension | Allies destroyed B-75 Beast 11200 | -6/Extension | Spotted B-75 Beast 11216 | -6/Extension | Allies destroyed B-75 Beast 11417 | -6/Extension | Lost 6 allies 11542 | -6/Extension | Build established: Commander-Skirmisher 11570 | -6/Extension | Rescued a captive Derelict 11572 | -6/Extension | Rescued a captive Derelict 11736 | -6/Extension | Discovered new exit (range 10) 11737 | -6/Extension | Discovered new exit (range 6) 11754 | -6/Extension | Identified exit to Cetus 11763 | -6/Extension | Entered Cetus 11763 | -6/Cetus | Accompanied by 21 allies (A7) 11768 | -6/Cetus | Acquired a Cetus Manufacturing Module code from A7 11777 | -6/Cetus | Spotted Cetus Guard 11779 | -6/Cetus | Spotted Cetus Guard 11780 | -6/Cetus | Spotted Cetus Guard 11783 | -6/Cetus | Spotted Cetus Guard 11798 | -6/Cetus | Allies destroyed Cetus Guard 11798 | -6/Cetus | Allies destroyed Cetus Guard 11800 | -6/Cetus | Allies destroyed Cetus Guard 11856 | -6/Cetus | Escorted A7 to Cetus Mainframe 11866 | -6/Cetus | Started Cetus Manufacturing Module 11891 | -6/Cetus | Manufactured an Enhanced Grunt 11916 | -6/Cetus | Manufactured an Enhanced Grunt 11928 | -6/Cetus | Discovered new exit (range 19) 11941 | -6/Cetus | Manufactured an Enhanced Grunt 11955 | -6/Cetus | Spotted Cetus Guard 11955 | -6/Cetus | Spotted Cetus Guard 11955 | -6/Cetus | Spotted Cetus Guard 11955 | -6/Cetus | Spotted Cetus Guard 11958 | -6/Cetus | Discovered new exit (range 26) 11966 | -6/Cetus | Manufactured an Enhanced Grunt 11966 | -6/Cetus | Allies destroyed Cetus Guard 11966 | -6/Cetus | Allies destroyed Cetus Guard 11969 | -6/Cetus | Destroyed Cetus Guard 11971 | -6/Cetus | Allies destroyed Cetus Guard 11985 | -6/Cetus | Met Revision 17 11991 | -6/Cetus | Manufactured an Enhanced Grunt 12035 | -6/Cetus | Identified exit to Archives 12042 | -6/Cetus | Entered Archives 12042 | -6/Archives | Accompanied by 7 allies (A7) 12047 | -6/Archives | Received a hacking code to weaken MAIN.C 12094 | -6/Archives | Discovered new exit (range 15) 12106 | -6/Archives | Discovered new exit (range 15) 12159 | -6/Archives | Discovered new exit (range 17) 12426 | -6/Archives | Identified exit to Hub_04(d) 12436 | -6/Archives | Entered Hub_04(d) 12436 | -6/Hub_04(d) | Accompanied by 5 allies 12540 | -6/Hub_04(d) | Identified exit to Factory 12595 | -6/Hub_04(d) | Found Prototype Device 12595 | -6/Hub_04(d) | Identified Exp. Thermal Shield 12743 | -6/Hub_04(d) | Build established: Scavenger-Skirmisher 12786 | -6/Hub_04(d) | First assault squad dispatched 12866 | -6/Hub_04(d) | Imp. System Shield fried by hacking feedback 12907 | -6/Hub_04(d) | Entered Factory 12907 | -5/Factory | Evolved 2 slots: Propulsion x1, Utility x1 12959 | -5/Factory | Identified exit to Upper Caves 13310 | -5/Factory | Imp. Hacking Suite fried by hacking feedback 13345 | -5/Factory | Repaired Broken Adv. Sensor Array 13371 | -5/Factory | Discovered new exit (range 10) 13377 | -5/Factory | Identified exit to Factory 13440 | -5/Factory | Entered Upper Caves 13514 | -5/Upper Caves | Learned Factory terminal intel 13530 | -5/Upper Caves | Encountered a Warlord checkpoint 13531 | -5/Upper Caves | Learned 4 Factory zone layouts 13583 | -5/Upper Caves | Discovered new exit (range 20) 13598 | -5/Upper Caves | Identified exit to Upper Caves 13598 | -5/Upper Caves | Entered another Upper Caves area 13600 | -5/Upper Caves | Discovered exit to Factory (range 10) 13760 | -5/Upper Caves | Build established: Scavenger-Scout 13803 | -5/Upper Caves | Learned Factory trap positions 13810 | -5/Upper Caves | Discovered new exit (range 5) 13811 | -5/Upper Caves | Identified exit to Warlord 13812 | -5/Upper Caves | Entered Warlord 13828 | -5/Warlord | System corruption cleaned by Quarantine Array 13961 | -5/Warlord | Visited the Vortex Lab 13982 | -5/Warlord | Warlord's base attacked by MAIN.C 14025 | -5/Warlord | Met Warlord 14029 | -5/Warlord | Opened Warlord's prototype stash 14047 | -5/Warlord | Found Prototype Device 14047 | -5/Warlord | Identified System Purifier 14052 | -5/Warlord | Found Prototype Processor 14052 | -5/Warlord | Identified Exp. Core Analyzer 14064 | -5/Warlord | Found Prototype Reactor 14332 | -5/Warlord | Warlord forces counterattacked 14341 | -5/Warlord | Spotted Striker 14352 | -5/Warlord | Destroyed Striker 14372 | -5/Warlord | Spotted Executioner 14388 | -5/Warlord | Build established: Mutant 14420 | -5/Warlord | Lost 12 allies 14430 | -5/Warlord | Spotted Striker 14457 | -5/Warlord | Discovered new exit (range 8) 14459 | -5/Warlord | Identified exit to Proximity Caves 14459 | -5/Warlord | Entered Proximity Caves 14761 | -4/Proximity Caves | Build established: Scavenger-Ninja 15558 | -4/Proximity Caves | Discovered exit to Factory (range 6) 15576 | -4/Proximity Caves | Entered Factory 15576 | -4/Factory | Evolved 2 slots: Power x1, Propulsion x1 15578 | -4/Factory | Loaded intel: 86 trap records 15579 | -4/Factory | Loaded intel: 26 terminal locations 15728 | -4/Factory | Identified exit to Upper Caves 15780 | -4/Factory | Build established: Scavenger-Scout 15954 | -4/Factory | Found Prototype Hackware 15954 | -4/Factory | Identified Exp. Hacking Suite 16109 | -4/Factory | Discovered new exit (range 14) 16152 | -4/Factory | Identified Vortex Chain Reactor 16303 | -4/Factory | Build established: Hacker-Scout 16314 | -4/Factory | Spotted B-86 Titan 16466 | -4/Factory | Repaired Broken Neutron Cannon? 16683 | -4/Factory | Fabricated Cmb. Gravmag System? 16763 | -4/Factory | Entered Upper Caves 16801 | -4/Upper Caves | Learned Research machine intel 16813 | -4/Upper Caves | Learned Research emergency access door positions 16841 | -4/Upper Caves | Identified exit to Upper Caves 16845 | -4/Upper Caves | Encountered a Warlord checkpoint 16955 | -4/Upper Caves | Entered another Upper Caves area 16979 | -4/Upper Caves | Spotted B-86 Titan 16998 | -4/Upper Caves | Build established: Hacker-Ninja 17061 | -4/Upper Caves | Discovered new exit (range 4) 17062 | -4/Upper Caves | Identified exit to Research 17487 | -4/Upper Caves | Discovered new exit (range 14) 17495 | -4/Upper Caves | Identified exit to Zhirov 17500 | -4/Upper Caves | Learned Research trap positions 17504 | -4/Upper Caves | Entered Zhirov 17504 | -4/Zhirov | Discovered new exit (range 4) 17505 | -4/Zhirov | Identified exit to Proximity Caves 17514 | -4/Zhirov | Met Zhirov 17522 | -4/Zhirov | Learned location of Quarantine (-2) 17522 | -4/Zhirov | Learned location of Testing (-3) 17522 | -4/Zhirov | Learned location of Command (-1) 17526 | -4/Zhirov | Zhirov requested help retrieving the SGEMP Prototype 17535 | -4/Zhirov | Found Alien Artifact 17535 | -4/Zhirov | Identified Integrated Dissipator 17535 | -4/Zhirov | Installed Integrated Dissipator, increased core heat dissipation (+20) 17592 | -4/Zhirov | Found Alien Artifact 17632 | -4/Zhirov | Entered Proximity Caves 17804 | -3/Proximity Caves | Discovered exit to Research (range 15) 17903 | -3/Proximity Caves | Entered Research 17903 | -3/Research | Evolved 2 slots: Utility x2 17904 | -3/Research | Loaded intel: 88 trap records 17906 | -3/Research | Loaded intel: 127 machine locations 18066 | -3/Research | Identified exit to Armory 18066 | -3/Research | Identified exit to Testing 18103 | -3/Research | Revision forces began assault on 0b10 18306 | -3/Research | Met up with Revision 17++ 18338 | -3/Research | Spotted B-86 Titan 18432 | -3/Research | Build established: Hacker-Mutant 18436 | -3/Research | Lost 3 allies 18532 | -3/Research | Entered Testing 18623 | -3/Testing | Found Prototype Device 18646 | -3/Testing | Identified AEGIS Remote Shield 18730 | -3/Testing | Identified exit to Research 18736 | -3/Testing | Spotted Striker 18744 | -3/Testing | Build established: Hacker-Scout 18897 | -3/Testing | Found Nanosword 18963 | -3/Testing | Found Prototype Energy Cannon 18963 | -3/Testing | Identified Null Cannon 18997 | -3/Testing | Found Prototype Hackware 18997 | -3/Testing | Identified Ghost Barrier 19073 | -3/Testing | Found Prototype Ballistic Cannon 19073 | -3/Testing | Identified Omega Cannon 19174 | -3/Testing | Build established: Hacker-Skirmisher 19241 | -3/Testing | Identified Transdimensional Reconstructor 19260 | -3/Testing | Entered Research 19260 | -2/Research | Warlord forces began assault on 0b10 19260 | -2/Research | Evolved 2 slots: Utility x2 19266 | -2/Research | Identified exit to Quarantine 19356 | -2/Research | Met up with Warlord 19370 | -2/Research | Research machine network offline 19533 | -2/Research | Fabricated Nanosword (x1) 19553 | -2/Research | Discovered new exit (range 14) 19623 | -2/Research | Entered Quarantine 19632 | -2/Quarantine | Found Alien Artifact 19634 | -2/Quarantine | Identified Subatomic Replicator 19634 | -2/Quarantine | Used Subatomic Replicator to replicate Nanosword 19680 | -2/Quarantine | Discovered new exit (range 7) 19683 | -2/Quarantine | Identified exit to Access 19783 | -2/Quarantine | Found Alien Slashing Weapon 19809 | -2/Quarantine | Identified Sigix Broadsword 19841 | -2/Quarantine | Build established: Hacker-Ninja 19871 | -2/Quarantine | Spotted Alpha 7 20036 | -2/Quarantine | Found Alien Artifact 20097 | -2/Quarantine | Spotted Fortress 20125 | -2/Quarantine | Discovered new exit (range 6) 20126 | -2/Quarantine | Identified exit to Section 7 20131 | -2/Quarantine | Entered Section 7 20137 | -2/Section 7 | Identified Core Reset Matrix 20163 | -2/Section 7 | Found Alien Artifact 20163 | -2/Section 7 | Identified Integrated Reactor 20163 | -2/Section 7 | Installed Integrated Reactor, increased core energy generation (+10) 20309 | -2/Section 7 | Found Alien Artifact 20309 | -2/Section 7 | Identified Microwarp Drive 20375 | -2/Section 7 | Warped through subspace 20620 | -2/Section 7 | Found Alien Artifact 20620 | -2/Section 7 | Identified Integrity Redistributor 20620 | -2/Section 7 | Used Integrity Redistributor, redistributed integrity from core (-108) 20765 | -2/Section 7 | Found Alien Artifact 20765 | -2/Section 7 | Identified Spacefold Activator 20787 | -2/Section 7 | Entered Access 20787 | -1/Access | Evolved 2 slots: Weapon x2 20933 | -1/Access | Discovered new exit (range 3) 20934 | -1/Access | Identified exit to Surface 20957 | -1/Access | Identified exit to Command 21123 | -1/Access | Build established: Hacker-Gladiator 21433 | -1/Access | Build established: Hacker-Mutant 21659 | -1/Access | System corruption reached 10% 21687 | -1/Access | Lost 3 parts (2u1w) 21839 | -1/Access | Spotted B-99 Colossus 21977 | -1/Access | Fabricated Adv. Powered Armor (x1) 22137 | -1/Access | Released all parts (13) 22168 | -1/Access | Lost 10 parts (1p2n4u3w) 22175 | -1/Access | Core integrity fell below 50% 22185 | -1/Access | Core integrity fell below 20% 22187 | -1/Access | Destroyed by S-43 Plague with Heavy Machine Gun Last Messages --------------- 22183_ P-80 Master resets S-43 Plague, system corruption cleaned. 22183_ K-01 Serf collects debris. 22183_ P-80 Master resets S-43 Plague, system corruption cleaned. 22184_ U-05 Engineer lays Concrete. 22185_ Penetrated by Slug. 22185_ U-05 Engineer lays Concrete. 22185_ P-80 Master resets A-15 Conveyor, system corruption cleaned. 22185_ Spectral Interrupter explodes. 22185_ Chain reaction triggered in Corrupted Lgt. Ion Engine. 22185_ U-05 Engineer destroyed. 22185_ K-01 Serf destroyed. 22185_ Terminal disabled. 22185_ H-88 Terminator destroyed. 22185_ K-01 Serf destroyed. 22185_ Penetrated by Slug. 22185_ Cmb. Linear Gravjet destroyed. 22185_ Slug penetrates Terminal. 22185_ P-80 Master resets G-73 Enforcer, system corruption cleaned. 22186_ P-80 Master resets S-43 Plague, system corruption cleaned. 22187_ B-99 Colossus activates siege mode. Map ----- +----------------------------------------------------+ | ?#+# ######"" ""########??? | | ## = " #?????""R""#?????????? | | # """ !! ###??? """"#?????????? | | # """ ! ""#???######?????????? | | # "" ! ""#??????????????????? | | # "" =% ""#??????????????????? | | # ! = T#??????????????????? | | # ""#??????????????????? | | # = ""#??????????????????? | | + % ""#??????????????????? | | # ##### * ###??????????????????? | | # ########## =% #????????????????????? | | # # = # #????????????????????? | | # # # s #????????????????????? | | ## # # g #????????????????????? | | + # g A R##???????????????????? | | # = # A [ ;#???????????????????? | | # # [%=##???????????????????? | | # # h!###??????????????????? | | #####+#### "#??????????????????? | | ##### ##BB !% | "#??????????????????? | | ##BB | =% "#??????????????????? | | #### =% ""#??????????????????? | | #### = ""#??????????????????? | | "#??????????????????? | | ########### @*%!"#??????????????????? | | #?# # =""#??????????????????? | | ###! # ""#??????????????????? | | # ""# ""#??????????????????? | | # ""# k "#??????????????????? | | + ""#^^^^^ ###????????????????### | | # T# k##?????????????????### | | # ""# ##??????####???????## | | ##]]] ""# ##### ##??????#####??????## | | ##]] ""# ##?## n ##??????## ###?????## | | ##]] # ##?## ##??????### ###????## | | ## # ##?## ##???????### ######## | | ########## ##?## ##????????###########+ | | #???????## ##?## ##?????????### | | #???????## ##?## ##??????????## | | #??####### ##?## A##??????????## " | | #? # ##?## ##??????????## """" | | #? # ##?## ###?????????## """"" | | # # ##?## ####????????## """" | | # # ##?## #####???????## """" | | +^ # ##?## # ############ = " | | # = # ##?## ############## | | # # ##?## ### ### | | ##? # ##?## ### ### """ "" | | #?? # ##?## ### " ### """G"" | +----------------------------------------------------+ Best States ------------- Heat Dissipation 97 Energy Generation 55 Energy Capacity 740 Matter Stores 300 Matter Capacity 300 Sight Range 22 Robot Scan Range 18 Terrain Scan Range 24 Terrain Scan Density 110 ECM Strength 2 Jamming Range 16 Cloak Strength 3 Additional Mass Support 25 Armor Coverage 375 Utility Shielding 66 Melee Speed Boost 30 Phase Shifting 15 Evasion (%) 80 Targeting Accuracy 20 Melee Accuracy 8 Target Analysis 8 Core Analysis 8 Recoil Reduction 4 Offensive Hacking 30 Defensive Hacking 22 Authchip Count 1 Item Schematics ----------------- Cmb. Airjet | -9/Materials | Scanalyzed Hrd. Light Armor Plating | -8/Materials | Scanalyzed Combat Drone Bay | -7/Data Miner | Free Lgt. Regenerative Plating | -7/Data Miner | Free Biomechanical Wings | -7/Data Miner | Free Thermal Defense Suite | -7/Data Miner | Free Shock Maul | -7/Data Miner | Free Linear Gravjet | -7/Data Miner | Free Imp. Kinecellerator | -7/Data Miner | Free Lrn. Proton Cannon | -7/Data Miner | Free Imp. System Shield | -7/Data Miner | Free Adv. Drone Bay | -7/Data Miner | Free Point Defense Array | -7/Data Miner | Free Imp. Phase Shifter | -6/Factory | Hacked Hyp. Gauss Rifle | -6/Factory | Scanalyzed Weapon Mount | -6/Factory | Scanalyzed Lrg. Storage Unit | -6/Factory | Hacked Cmb. Gravmag System | -5/Factory | Hacked Lyr. Medium Armor Plating | -4/Factory | Scanalyzed Adv. Reaction Control System | -4/Factory | Scanalyzed Adv. Terrain Scanner | -4/Factory | Scanalyzed Hvy. Shock Bomb Launcher | -4/Factory | Scanalyzed Neutron Cannon | -4/Factory | Scanalyzed Hyp. Mass Driver | -4/Factory | Hacked Assault Drone Bay | -4/Zhirov | Free Exp. Heat Sink | -4/Zhirov | Free Exp. Optical Array | -4/Zhirov | Free Imp. Arc Thrower | -4/Zhirov | Free Adv. Powered Armor | -3/Research | Hacked Cmb. Antigrav System | -3/Research | Hacked Nanosword | -3/Testing | Scanalyzed Hcp. Storage Unit | -2/Quarantine | Hacked Exp. Utility Shielding | -2/Quarantine | Hacked Nanoactuators | -2/Quarantine | Hacked Adv. Actuator Array | -2/Quarantine | Hacked Cmb. Linear Gravjet | -2/Quarantine | Hacked Robot Schematics ------------------ B-48 Gladiator | -7/Data Miner | Free G-47 Trooper | -7/Data Miner | Free H-66 Slayer | -7/Data Miner | Free M-22 Extractor | -7/Data Miner | Free G-50 Soldier | -7/Data Miner | Free Y-64 Sentinel | -7/Data Miner | Free Fabricated ------------ Cmb. Airjet | x2 | -7/Factory | Authchip Cmb. Airjet | x2 | -7/Factory Cmb. Airjet | x2 | -7/Factory Lgt. Regenerative Plating | x1 | -6/Factory | Authchip Lrg. Storage Unit | x1 | -6/Factory Combat Drone Bay | x1 | -6/Factory Cmb. Gravmag System | x2 | -4/Factory | Authchip Nanosword | x1 | -2/Research Adv. Powered Armor | x1 | -1/Access Alien Tech Used ----------------- Integrated Dissipator Subatomic Replicator Integrated Reactor Sigix Broadsword Microwarp Drive Transdimensional Reconstructor Integrity Redistributor Spacefold Activator Achievements -------------- Whoosh! Challenges ------------ None Game ------ Seed CargoAssembledAccelerator Manual? 0 Play Time 05:15:10 Cumulative 257.4 hours Start 2024.06.01 @ 17:47:36 End 2024.06.04 @ 21:01:50 Sessions 17 Manual Loads 0 Difficulty Rogue Special Mode None Game No. 310 Rogue 310 Adventurer 0 Explorer 0 Win Type - Total 11 Types 5/1/2/1/1/0/0/1/0 Lore% 74 Gallery% 82 Achievement% 71 Wizard Run 0 Options --------- Layout 0 ASCII 0 Keyboard 0 Movement Numpad Keybinds 0 Fullscreen 1 Font 18/SmallcapsGlow Map View 76x50 Zoom Use 0% Tactical HUD 1 Map Filters NONE Filters NONE Steam 1 RUN: a01efa1c-ec8a-4c52-a72d-4b6e8d38c36d